bitfinex/quotes_BTCUSD_20240607
["timestamp","ask_amount","ask_price","bid_price","bid_amount"]
[1717732501674,0.8071692,71000.0,70999.0,0.09693257]
[1717732502499,0.8071692,71000.0,70999.0,0.17313257]
[1717732503122,0.80721479,71000.0,70999.0,0.17313257]
[1717732503628,0.80721478,71000.0,70999.0,0.17313257]
[1717732504004,0.80721478,71000.0,70999.0,0.16240116]
[1717732504633,0.80721478,71000.0,70999.0,0.17313257]
[1717732505025,0.80721478,71000.0,70999.0,0.16240116]
[1717732505617,0.80721478,71000.0,70999.0,0.17313257]
[1717732506224,0.80721478,71000.0,70999.0,0.16240116]
[1717732506723,0.80721478,71000.0,70999.0,0.17313257]
[1717732506952,0.80721478,71000.0,70999.0,0.10453257]
[1717732507137,0.80721478,71000.0,70999.0,0.16240116]
[1717732507584,0.80721478,71000.0,70999.0,0.17313257]
[1717732507991,0.80721478,71000.0,70999.0,0.16240116]
[1717732508191,0.80721478,71000.0,70999.0,0.08620116]
[1717732508601,0.80721478,71000.0,70999.0,0.09693257]
[1717732508982,0.88331478,71000.0,70999.0,0.09693257]
[1717732509201,0.99079487,71000.0,70999.0,0.09693257]
[1717732509415,1.08245958,71000.0,70999.0,0.09693257]
[1717732510266,1.51947348,71000.0,70999.0,0.09693257]
[1717732510488,1.51947348,71000.0,70999.0,0.02833257]
[1717732510706,1.51947348,71000.0,70999.0,0.09693257]
[1717732511561,1.08245958,71000.0,70999.0,0.08620116]
[1717732511783,1.08245958,71000.0,70999.0,0.09693257]
[1717732512427,1.23695958,71000.0,70999.0,0.02833257]
[1717732512642,1.23695958,71000.0,70999.0,0.09693257]
[1717732513521,1.23695958,71000.0,70999.0,0.02833257]
[1717732514495,1.23694732,71000.0,70999.0,0.02833257]
[1717732514714,0.89886723,71000.0,70999.0,0.02833257]
[1717732514945,0.93396649,71000.0,70999.0,0.02833257]
[1717732515143,1.02643623,71000.0,70999.0,0.02833257]
[1717732515343,0.80720252,71000.0,70999.0,0.26903257]
[1717732515542,0.75682597,71000.0,70999.0,0.26903257]
[1717732515754,0.80731128,71000.0,70999.0,0.26903257]
[1717732516368,0.80731128,71000.0,70999.0,0.27903257]
[1717732516369,0.30025426,71000.0,70999.0,0.27903257]
[1717732516595,0.32014586,71000.0,70999.0,0.41987957]
[1717732516800,0.008,71000.0,70999.0,0.41987957]
[1717732517361,0.04224672,71005.0,71004.0,0.15008714]
[1717732517578,0.18666565,71005.0,71004.0,0.17456841]
[1717732517792,0.14441893,71005.0,71004.0,0.17456841]
[1717732517995,0.18664248,71005.0,71004.0,0.17456841]
[1717732518202,0.14441893,71005.0,71004.0,0.24316841]
[1717732518412,0.20772858,71005.0,71004.0,0.24316841]
[1717732518648,0.14441893,71005.0,71004.0,0.24316841]
[1717732519056,0.18661843,71005.0,71004.0,0.24316841]
[1717732519283,0.14441893,71005.0,71004.0,0.24316841]
[1717732519595,0.19261821,71005.0,71004.0,0.24416841]
[1717732520033,0.19261821,71005.0,71004.0,0.17556841]
[1717732520249,0.19561821,71005.0,71004.0,0.24516841]
[1717732520467,0.21672858,71005.0,71004.0,0.24516841]
[1717732522508,0.21672858,71005.0,71004.0,0.17656841]
[1717732522726,0.21672858,71005.0,71004.0,0.24516841]
[1717732524034,0.21672858,71005.0,71004.0,0.234437]
[1717732524461,0.21672858,71005.0,71004.0,0.17656841]
[1717732525515,0.19560161,71005.0,71004.0,0.17656841]
[1717732526358,0.15341893,71005.0,71004.0,0.17656841]
[1717732527400,0.19559706,71005.0,71004.0,0.17656841]
[1717732531639,0.15341893,71005.0,71004.0,0.17656841]
[1717732531858,0.19559706,71005.0,71004.0,0.17656841]
[1717732532517,0.15341893,71005.0,71004.0,0.17656841]
[1717732532735,0.15341893,71005.0,71004.0,0.165837]
[1717732532961,0.1955854,71005.0,71004.0,0.165837]
[1717732533387,0.1955854,71005.0,71004.0,0.17656841]
[1717732534784,0.19558353,71005.0,71004.0,0.17656841]
[1717732536755,0.15341893,71005.0,71004.0,0.17656841]
[1717732538547,0.15341893,71005.0,71004.0,0.18656841]
[1717732538992,0.15341893,71005.0,71004.0,0.17656841]
[1717732540936,0.15341893,71005.0,71004.0,0.25426841]
[1717732541145,0.15341893,71005.0,71004.0,0.243537]
[1717732543342,0.15341893,71005.0,71004.0,0.25426841]
[1717732543566,0.15341893,71005.0,71004.0,0.40996841]
[1717732544034,0.009,71005.0,71004.0,0.41996841]
[1717732546001,0.009,71005.0,71004.0,0.399237]
[1717732546657,0.009,71005.0,71004.0,0.41996841]
[1717732548158,0.009,71005.0,71004.0,0.70364241]
[1717732548799,0.009,71005.0,71004.0,0.98531641]
[1717732549012,0.009,71005.0,71004.0,0.98331641]
[1717732549502,0.009,71005.0,71004.0,0.98531641]
[1717732549929,0.009,71005.0,71004.0,0.98331641]
[1717732551453,0.00986,71005.0,71004.0,0.98331641]
[1717732551679,0.00986,71005.0,71004.0,1.18531641]
[1717732551927,0.00986,71005.0,71004.0,0.98331641]
[1717732552855,0.00986,71005.0,71004.0,1.18531641]
[1717732553588,0.00986,71005.0,71004.0,0.98331641]
[1717732553831,0.00986,71005.0,71004.0,1.18531641]
[1717732555961,0.00986,71005.0,71004.0,1.28531641]
[1717732557747,0.00986,71005.0,71004.0,1.08331641]
[1717732557982,0.00986,71005.0,71004.0,1.15191641]
[1717732559687,0.00986,71005.0,71004.0,1.1689002]
[1717732561954,0.00986,71005.0,71004.0,1.3709002]
[1717732562875,0.00986,71005.0,71004.0,1.1689002]
[1717732563774,0.00986,71005.0,71004.0,1.3709002]
[1717732563990,0.00986,71005.0,71004.0,1.1689002]
[1717732565930,0.00986,71005.0,71004.0,1.14816879]
[1717732566144,0.00986,71005.0,71004.0,1.1689002]
[1717732566574,0.00986,71005.0,71004.0,1.14816879]
[1717732566791,0.00986,71005.0,71004.0,1.1689002]
[1717732566997,0.00986,71005.0,71004.0,1.14816879]
[1717732572004,0.00986,71005.0,71004.0,1.1689002]
[1717732572222,0.00986,71005.0,71004.0,1.14816879]
[1717732573259,0.00986,71005.0,71004.0,1.1689002]
[1717732573459,0.00986,71005.0,71004.0,1.14816879]
[1717732574082,0.00986,71005.0,71004.0,1.1689002]
[1717732575834,0.00986,71005.0,71004.0,1.1589002]
[1717732576271,0.00986,71005.0,71004.0,1.1689002]
[1717732577093,0.00986,71005.0,71004.0,1.1589002]
[1717732577743,0.00986,71005.0,71004.0,1.1689002]
[1717732582574,0.00986,71005.0,71004.0,1.1589002]
[1717732582812,0.00986,71005.0,71004.0,1.14191641]
[1717732583019,0.00986,71005.0,71004.0,1.15191641]
[1717732588636,0.00986,71005.0,71004.0,1.131185]
[1717732588849,0.00986,71005.0,71004.0,1.15191641]
[1717732589508,0.00986,71005.0,71004.0,1.131185]
[1717732589713,0.00986,71005.0,71004.0,1.15191641]
[1717732589920,0.00986,71005.0,71004.0,1.131185]
[1717732590333,0.00986,71005.0,71004.0,1.15191641]
[1717732591233,0.00986,71005.0,71004.0,1.131185]
[1717732591675,0.00986,71005.0,71004.0,1.15191641]
[1717732592571,0.00986,71005.0,71004.0,1.131185]
[1717732593648,0.00986,71005.0,71004.0,1.15191641]
[1717732595695,0.00986,71005.0,71004.0,1.15391641]
[1717732595916,0.00986,71005.0,71004.0,1.15191641]
[1717732600036,0.00986,71005.0,71004.0,1.131185]
[1717732600701,0.00986,71005.0,71004.0,1.15191641]
[1717732600915,0.00986,71005.0,71004.0,1.131185]
[1717732601368,0.00986,71005.0,71004.0,1.15191641]
[1717732601585,0.00986,71005.0,71004.0,1.35391641]
[1717732602017,0.00986,71005.0,71004.0,1.15191641]
[1717732602163,0.00986,71005.0,71004.0,1.35391641]
[1717732602376,0.00986,71005.0,71004.0,1.131185]
[1717732602590,0.00986,71005.0,71004.0,1.15391641]
[1717732602782,0.00986,71005.0,71004.0,1.131185]
[1717732603680,0.00986,71005.0,71004.0,1.35391641]
[1717732603850,0.00986,71005.0,71004.0,1.131185]
[1717732604062,0.00986,71005.0,71004.0,1.15191641]
[1717732604466,0.00986,71005.0,71004.0,1.131185]
[1717732604706,0.00986,71005.0,71004.0,1.15191641]
[1717732604826,0.00986,71005.0,71004.0,1.131185]
[1717732605229,0.00986,71005.0,71004.0,1.15191641]
[1717732606349,0.00986,71005.0,71004.0,0.83991641]
[1717732606767,0.00986,71005.0,71004.0,0.91851641]
[1717732606978,0.00986,71005.0,71004.0,0.90851641]
[1717732607423,0.00986,71005.0,71004.0,0.83991641]
[1717732607647,0.00986,71005.0,71004.0,0.90851641]
[1717732607854,0.00986,71005.0,71004.0,0.91851641]
[1717732608479,0.00986,71005.0,71004.0,0.90851641]
[1717732609498,0.00986,71005.0,71004.0,0.897785]
[1717732611930,0.00986,71005.0,71004.0,0.90851641]
[1717732614352,0.00986,71005.0,71004.0,0.897785]
[1717732614581,0.00986,71005.0,71004.0,0.616111]
[1717732616530,0.00986,71005.0,71004.0,0.62684241]
[1717732618514,0.00986,71005.0,71004.0,0.616111]
[1717732618702,0.00986,71005.0,71004.0,0.62684241]
[1717732619993,0.00986,71005.0,71004.0,0.616111]
[1717732620224,0.00986,71005.0,71004.0,0.62684241]
[1717732620448,0.00986,71005.0,71004.0,0.616111]
[1717732620683,0.00986,71005.0,71004.0,0.62684241]
[1717732622019,0.00986,71005.0,71004.0,0.616111]
[1717732623121,0.00986,71005.0,71004.0,0.62684241]
[1717732623369,0.00986,71005.0,71004.0,0.55824241]
[1717732623585,0.00986,71005.0,71004.0,0.62684241]
[1717732624469,0.00986,71005.0,71004.0,0.55824241]
[1717732624690,0.25036,71005.0,71004.0,0.311437]
[1717732624932,0.25036,71005.0,71004.0,0.32216841]
[1717732626037,0.25036,71005.0,71004.0,0.27656841]
[1717732626757,0.25036,71005.0,71004.0,0.44796841]
[1717732626989,0.25036,71005.0,71004.0,0.27656841]
[1717732627214,0.29259584,71005.0,71004.0,0.27656841]
[1717732627654,0.29259556,71005.0,71004.0,0.44796841]
[1717732627863,0.25036,71005.0,71004.0,0.44796841]
[1717732628288,0.29259558,71005.0,71004.0,0.44796841]
[1717732628519,0.29259558,71005.0,71004.0,0.27656841]
[1717732628734,0.29259558,71005.0,71004.0,0.44796841]
[1717732628951,0.29259558,71005.0,71004.0,0.265837]
[1717732629661,0.29259558,71005.0,71004.0,0.27656841]
[1717732630099,0.29259558,71005.0,71004.0,0.265837]
[1717732630317,0.29259558,71005.0,71004.0,0.165837]
[1717732633352,0.29259558,71005.0,71004.0,0.17656841]
[1717732633559,0.29259558,71005.0,71004.0,0.165837]
[1717732633765,0.29259558,71005.0,71004.0,0.17656841]
[1717732634397,0.25036,71005.0,71004.0,0.165837]
[1717732634912,0.25036,71005.0,71004.0,0.337237]
[1717732635353,0.25036,71005.0,71004.0,0.34796841]
[1717732635559,0.25036,71005.0,71004.0,0.17656841]
[1717732636232,0.25036,71005.0,71004.0,0.165837]
[1717732636466,0.25036,71005.0,71004.0,0.17656841]
[1717732637773,0.25036,71005.0,71004.0,0.34796841]
[1717732638421,0.25036,71005.0,71004.0,0.17656841]
[1717732638625,0.25036,71005.0,71004.0,0.337237]
[1717732639034,0.25036,71005.0,71004.0,0.165837]
[1717732639403,0.25036,71005.0,71004.0,0.17656841]
[1717732639603,0.25036,71005.0,71004.0,0.34796841]
[1717732640036,0.00986,71005.0,71004.0,0.62964241]
[1717732640447,0.00986,71005.0,71004.0,0.45824241]
[1717732640664,0.00986,71005.0,71004.0,0.62964241]
[1717732641650,0.00986,71005.0,71004.0,0.45824241]
[1717732642731,0.00986,71005.0,71004.0,0.62964241]
[1717732643490,0.00986,71005.0,71004.0,0.45824241]
[1717732643690,0.00986,71005.0,71004.0,0.62964241]
[1717732644527,0.00986,71005.0,71004.0,0.45824241]
[1717732644742,0.00986,71005.0,71004.0,0.62964241]
[1717732645567,0.00986,71005.0,71004.0,0.45824241]
[1717732645754,0.00986,71005.0,71004.0,0.62964241]
[1717732645976,0.00986,71005.0,71004.0,0.52684241]
[1717732646628,0.00986,71005.0,71004.0,0.447511]
[1717732646848,0.00986,71005.0,71004.0,0.516111]
[1717732647051,0.00986,71005.0,71004.0,0.52684241]
[1717732647252,0.00986,71005.0,71004.0,0.516111]
[1717732647457,0.24296,71005.0,71004.0,0.516111]
[1717732647659,0.24296,71005.0,71004.0,0.52684241]
[1717732647864,0.24296,71005.0,71004.0,0.516111]
[1717732648272,0.24296,71005.0,71004.0,0.52684241]
[1717732648730,0.42231499,71005.0,71004.0,0.025]
[1717732648943,0.73439404,71005.0,71004.0,0.002]
[1717732649161,1.13290127,71005.0,71004.0,0.002]
[1717732649381,1.02661077,71005.0,71004.0,0.002]
[1717732649606,0.99167471,71005.0,71004.0,0.002]
[1717732649831,0.99167471,71005.0,71004.0,0.0706]
[1717732650047,0.99167471,71005.0,71004.0,0.0936]
[1717732650048,0.99171845,71005.0,71004.0,0.0936]
[1717732650458,0.69950172,71005.0,71004.0,0.0936]
[1717732650664,0.69950172,71005.0,71004.0,0.025]
[1717732650866,0.69950172,71005.0,71004.0,0.0706]
[1717732651073,0.69950172,71005.0,71004.0,0.0936]
[1717732651287,0.80501437,71005.0,71004.0,0.0936]
[1717732651493,0.80501437,71005.0,71004.0,0.025]
[1717732651711,0.80501437,71005.0,71004.0,0.0706]
[1717732651988,0.80501437,71005.0,71004.0,0.0936]
[1717732652213,0.38737893,71005.0,71004.0,0.025]
[1717732652421,0.80501246,71005.0,71004.0,0.025]
[1717732652625,0.69949803,71005.0,71004.0,0.025]
[1717732652842,0.69949803,71005.0,71004.0,0.0706]
[1717732653077,0.69949803,71005.0,71004.0,0.0936]
[1717732653301,0.80499331,71005.0,71004.0,0.0936]
[1717732653504,0.80499331,71005.0,71004.0,0.025]
[1717732653710,0.80499331,71005.0,71004.0,0.0706]
[1717732653916,0.80499331,71005.0,71004.0,0.025]
[1717732654339,0.69949803,71005.0,71004.0,0.002]
[1717732654543,0.70024789,71005.0,71004.0,0.025]
[1717732654955,0.69949803,71005.0,71004.0,0.025]
[1717732655335,0.80497285,71005.0,71004.0,0.002]
[1717732655544,0.80497285,71005.0,71004.0,0.025]
[1717732656891,0.80497285,71005.0,71004.0,0.002]
[1717732657116,0.80497285,71005.0,71004.0,0.025]
[1717732657340,0.80497285,71005.0,71004.0,0.002]
[1717732657555,0.80497285,71005.0,71004.0,0.025]
[1717732657989,0.80497285,71005.0,71004.0,0.002]
[1717732659602,0.69949803,71005.0,71004.0,0.002]
[1717732660678,0.70024789,71005.0,71004.0,0.002]
[1717732660887,0.69949803,71005.0,71004.0,0.002]
[1717732661327,0.80497285,71005.0,71004.0,0.002]
[1717732661544,0.80572271,71005.0,71004.0,0.002]
[1717732661976,0.80569989,71005.0,71004.0,0.002]
[1717732662389,0.80495003,71005.0,71004.0,0.002]
[1717732662610,0.80569989,71005.0,71004.0,0.002]
[1717732662840,0.4664102,71005.0,71004.0,0.002]
[1717732663057,0.21753788,71005.0,71004.0,0.002]
[1717732663527,0.15427893,71005.0,71004.0,0.01273141]
[1717732663742,0.15427893,71005.0,71004.0,0.025]
[1717732664170,0.15427893,71005.0,71004.0,0.002]
[1717732664401,0.21753788,71005.0,71004.0,0.002]
[1717732664630,0.21753788,71005.0,71004.0,0.01273141]
[1717732664882,0.29563788,71005.0,71004.0,0.025]
[1717732665304,0.39767893,71005.0,71004.0,0.002]
[1717732665520,0.39767893,71005.0,71004.0,0.025]
[1717732665730,0.70979458,71005.0,71004.0,0.025]
[1717732666409,0.7941406,71005.0,71004.0,0.025]
[1717732666817,0.7941406,71005.0,71004.0,0.002]
[1717732667020,0.70979458,71005.0,71004.0,0.025]
[1717732667496,0.79415387,71005.0,71004.0,0.002]
[1717732668812,0.70979458,71005.0,71004.0,0.002]
[1717732669026,0.79415969,71005.0,71004.0,0.002]
[1717732669240,0.70979458,71005.0,71004.0,0.002]
[1717732670123,0.70979458,71005.0,71004.0,0.01273141]
[1717732670346,0.70979458,71005.0,71004.0,0.03573141]
[1717732670792,0.70980151,71005.0,71004.0,0.025]
[1717732671263,0.70980151,71005.0,71004.0,0.002]
[1717732671895,0.70980151,71005.0,71004.0,0.00348127]
[1717732672111,0.79417498,71005.0,71004.0,0.03573141]
[1717732672356,0.46095858,71005.0,71004.0,0.03573141]
[1717732672581,0.15427893,71005.0,71004.0,0.03573141]
[1717732672826,0.21755858,71005.0,71004.0,0.03573141]
[1717732673638,0.21755858,71005.0,71004.0,0.025]
[1717732673837,0.21755858,71005.0,71004.0,0.002]
[1717732674072,0.21755858,71005.0,71004.0,0.025]
[1717732674283,0.46639105,71005.0,71004.0,0.025]
[1717732674491,0.46639105,71005.0,71004.0,0.002]
[1717732674930,0.15427893,71005.0,71004.0,0.002]
[1717732675133,0.21755939,71005.0,71004.0,0.002]
[1717732676041,0.15427893,71005.0,71004.0,0.002]
[1717732676842,0.46638723,71005.0,71004.0,0.002]
[1717732677258,0.55076408,71005.0,71004.0,0.002]
[1717732678508,0.55077576,71005.0,71004.0,0.002]
[1717732678955,0.15427893,71005.0,71004.0,0.002]
[1717732679139,0.23866099,71005.0,71004.0,0.002]
[1717732679337,0.55077617,71005.0,71004.0,0.002]
[1717732680428,0.15427893,71005.0,71004.0,0.002]
[1717732680633,0.2386629,71005.0,71004.0,0.002]
[1717732680802,0.55077682,71005.0,71004.0,0.002]
[1717732681822,0.84298766,71005.0,71004.0,0.002]
[1717732682026,0.55077682,71005.0,71004.0,0.002]
[1717732682232,0.46639285,71005.0,71004.0,0.01273141]
[1717732682444,0.4063626,71005.0,71004.0,0.27833141]
[1717732682901,0.0731515,71005.0,71004.0,0.27833141]
[1717732683118,0.05205173,71005.0,71004.0,0.27833141]
[1717732683757,0.00986,71005.0,71004.0,0.41916841]
[1717732684004,0.00986,71005.0,71004.0,0.59066841]
[1717732685515,0.00986,71005.0,71004.0,0.42916841]
[1717732685730,0.00986,71005.0,71004.0,0.60066841]
[1717732686591,0.00986,71005.0,71004.0,0.42916841]
[1717732686809,0.00986,71005.0,71004.0,0.60066841]
[1717732687437,0.00986,71005.0,71004.0,0.42916841]
[1717732687659,0.00986,71005.0,71004.0,0.60066841]
[1717732688540,0.00986,71005.0,71004.0,0.42916841]
[1717732688764,0.00986,71005.0,71004.0,0.60066841]
[1717732689462,0.00986,71005.0,71004.0,0.42916841]
[1717732689672,0.00986,71005.0,71004.0,0.60066841]
[1717732692501,0.00986,71005.0,71004.0,0.42916841]
[1717732692738,0.00986,71005.0,71004.0,0.60066841]
[1717732692944,0.00986,71005.0,71004.0,0.88234241]
[1717732697808,0.00986,71005.0,71004.0,0.71084241]
[1717732698026,0.00986,71005.0,71004.0,0.77944241]
[1717732702308,0.00986,71005.0,71004.0,1.06111641]
[1717732705536,0.00986,71005.0,71004.0,1.1206152]
[1717732710464,0.00986,71005.0,71004.0,1.3226152]
[1717732710704,0.00986,71005.0,71004.0,1.1206152]
[1717732710932,0.00086,71009.0,71008.0,0.44321841]
[1717732711150,0.00086,71009.0,71008.0,1.1393172]
[1717732711371,0.00086,71009.0,71008.0,0.9393172]
[1717732711813,0.00086,71012.0,71011.0,0.60520041]
[1717732712039,0.00086,71012.0,71011.0,0.83754916]
[1717732712362,0.00086,71012.0,71011.0,1.11919516]
[1717732719617,0.00086,71012.0,71011.0,1.05059516]
[1717732719824,0.00086,71012.0,71011.0,1.11919516]
[1717732720031,0.00086,71012.0,71011.0,1.05944641]
[1717732720230,0.00086,71012.0,71011.0,1.11923207]
[1717732720809,0.00086,71012.0,71011.0,1.11924341]
[1717732721234,0.00086,71012.0,71011.0,1.13608429]
[1717732722471,0.00086,71012.0,71011.0,1.11534893]
[1717732722727,0.00086,71012.0,71011.0,1.12608034]
[1717732722926,0.00086,71012.0,71011.0,1.13608034]
[1717732728103,0.00086,71012.0,71011.0,1.1360941]
[1717732731143,0.00086,71012.0,71011.0,1.1360907]
[1717732733902,0.00086,71012.0,71011.0,1.2387907]
[1717732734341,0.00086,71012.0,71011.0,1.21803371]
[1717732735650,0.00086,71012.0,71011.0,1.21806988]
[1717732737352,0.00086,71012.0,71011.0,1.23880129]
[1717732737555,0.00086,71012.0,71011.0,1.21806988]
[1717732737792,0.00086,71012.0,71011.0,1.2387987]
[1717732738421,0.00086,71012.0,71011.0,1.0767987]
[1717732738841,0.00086,71012.0,71011.0,1.07681989]
[1717732740782,0.00086,71012.0,71011.0,1.01698729]
[1717732740999,0.00086,71012.0,71011.0,1.07684498]
[1717732741175,0.00086,71012.0,71011.0,1.07984498]
[1717732741447,0.00086,71012.0,71011.0,1.05911357]
[1717732741867,0.00086,71012.0,71011.0,1.08584498]
[1717732742100,0.00086,71012.0,71011.0,1.06511357]
[1717732742345,0.00086,71012.0,71011.0,1.06411357]
[1717732742851,0.00086,71012.0,71011.0,1.06711357]
[1717732743714,0.00086,71012.0,71011.0,1.08784498]
[1717732743929,0.00086,71012.0,71011.0,1.06711357]
[1717732744787,0.00086,71012.0,71011.0,1.08784498]
[1717732745433,0.00086,71012.0,71011.0,1.06711357]
[1717732747810,0.00086,71012.0,71011.0,1.08784498]
[1717732748889,0.00086,71012.0,71011.0,1.07784498]
[1717732749100,0.00086,71012.0,71011.0,1.08784498]
[1717732749317,0.00086,71012.0,71011.0,1.07784498]
[1717732749529,0.00086,71012.0,71011.0,1.08784498]
[1717732749748,0.00086,71012.0,71011.0,1.07784498]
[1717732750276,0.00086,71012.0,71011.0,1.08784498]
[1717732750463,0.00086,71012.0,71011.0,1.07784498]
[1717732751625,0.00086,71012.0,71011.0,1.06711357]
[1717732751842,0.00086,71012.0,71011.0,1.07784498]
[1717732753341,0.00086,71012.0,71011.0,0.99684498]
[1717732755532,0.00086,71012.0,71011.0,1.00684498]
[1717732755953,0.00086,71012.0,71011.0,0.88331357]
[1717732756163,0.00086,71012.0,71011.0,0.89404498]
[1717732757456,0.00086,71012.0,71011.0,0.90404498]
[1717732757668,0.00086,71012.0,71011.0,0.89404498]
[1717732757919,0.00086,71012.0,71011.0,0.89430765]
[1717732758444,0.00086,71012.0,71011.0,0.90430765]
[1717732759910,0.00086,71012.0,71011.0,1.00710765]
[1717732760559,0.00086,71012.0,71011.0,0.99710765]
[1717732765166,0.00086,71012.0,71011.0,1.00710765]
[1717732766365,0.00086,71012.0,71011.0,0.99710765]
[1717732766506,0.00086,71012.0,71011.0,0.98637624]
[1717732767337,0.00086,71012.0,71011.0,0.99710765]
[1717732768125,0.00086,71012.0,71011.0,0.98637624]
[1717732768329,0.00086,71012.0,71011.0,1.00710765]
[1717732769519,0.00086,71012.0,71011.0,0.98637624]
[1717732769722,0.00086,71012.0,71011.0,0.99710765]
[1717732771449,0.00086,71012.0,71011.0,1.00710765]
[1717732772608,0.00086,71012.0,71011.0,1.0070114]
[1717732773465,0.00086,71012.0,71011.0,0.98627999]
[1717732774290,0.00086,71012.0,71011.0,0.9970114]
[1717732776849,0.00086,71012.0,71011.0,1.0070114]
[1717732778647,0.00086,71012.0,71011.0,0.9970114]
[1717732779722,0.00086,71012.0,71011.0,0.98627999]
[1717732779940,0.00086,71012.0,71011.0,0.9970114]
[1717732780149,0.00086,71012.0,71011.0,1.0070114]
[1717732780375,0.00086,71012.0,71011.0,0.99701626]
[1717732780638,0.00086,71012.0,71011.0,0.98628485]
[1717732781054,0.00086,71012.0,71011.0,0.99701626]
[1717732782534,0.00086,71012.0,71011.0,0.98776612]
[1717732782743,0.00086,71012.0,71011.0,0.99701626]
[1717732783388,0.00086,71012.0,71011.0,1.00701626]
[1717732784682,0.00086,71012.0,71011.0,0.99701626]
[1717732786392,0.00086,71012.0,71011.0,0.99692968]
[1717732786854,0.00086,71012.0,71011.0,1.00692968]
[1717732788655,0.00086,71012.0,71011.0,1.00694354]
[1717732792012,0.00086,71012.0,71011.0,1.00693799]
[1717732793134,0.00086,71012.0,71011.0,0.98620658]
[1717732793347,0.00086,71012.0,71011.0,0.98614451]
[1717732793565,0.00086,71012.0,71011.0,1.00687592]
[1717732793783,0.00086,71012.0,71011.0,0.98614451]
[1717732794874,0.00086,71012.0,71011.0,1.00687592]
[1717732795568,0.00086,71012.0,71011.0,0.99687592]
[1717732795794,0.00086,71012.0,71011.0,0.98614451]
[1717732796283,0.00086,71012.0,71011.0,0.98614698]
[1717732796495,0.00086,71012.0,71011.0,0.99687839]
[1717732797539,0.00086,71012.0,71011.0,0.93698729]
[1717732797751,0.00086,71012.0,71011.0,0.99690132]
[1717732798755,0.00086,71012.0,71011.0,1.00690132]
[1717732799391,0.00086,71012.0,71011.0,0.99690132]
[1717732799604,0.00086,71012.0,71011.0,1.00690132]
[1717732799815,0.00086,71012.0,71011.0,0.99690132]
[1717732800292,0.23216,71012.0,71011.0,0.99690132]
[1717732802399,0.23216,71012.0,71011.0,0.98616991]
[1717732802846,0.23216,71012.0,71011.0,0.98614673]
[1717732803294,0.08156,71012.0,71011.0,0.81484673]
[1717732803557,0.00086,71012.0,71011.0,0.99687814]
[1717732804239,0.00086,71012.0,71011.0,0.98614673]
[1717732805168,0.00086,71012.0,71011.0,0.99687814]
[1717732805432,0.00086,71012.0,71011.0,0.82557814]
[1717732806666,0.00086,71012.0,71011.0,0.83557814]
[1717732807146,0.00086,71012.0,71011.0,1.22159707]
[1717732807372,0.00086,71012.0,71011.0,1.42359707]
[1717732807589,0.00086,71012.0,71011.0,1.22159707]
[1717732808018,0.00086,71012.0,71011.0,1.39289707]
[1717732809127,0.00086,71012.0,71011.0,1.49289707]
[1717732810514,0.00086,71012.0,71011.0,2.22474307]
[1717732810761,0.04223502,71022.0,71021.0,0.44314041]
[1717732810982,0.06421253,71024.0,71023.0,0.02073141]
[1717732810983,0.00086,71024.0,71023.0,0.02073141]
[1717732811450,0.00086,71024.0,71023.0,0.10362226]
[1717732812157,0.00086,71024.0,71023.0,0.09362226]
[1717732812378,0.00086,71024.0,71023.0,0.51601926]
[1717732812809,0.00086,71024.0,71023.0,0.52601926]
[1717732813237,0.00086,71024.0,71023.0,0.53401926]
[1717732813467,0.00086,71024.0,71023.0,0.53436273]
[1717732815614,0.00086,71024.0,71023.0,0.70567405]
[1717732817413,0.23406,71024.0,71023.0,0.70567405]
[1717732817674,0.23406,71024.0,71023.0,0.24204464]
[1717732817892,0.23406,71024.0,71023.0,0.353099]
[1717732818114,0.27629502,71024.0,71023.0,0.36383041]
[1717732818341,0.23406,71024.0,71023.0,0.36383041]
[1717732819607,0.23406,71024.0,71023.0,0.19253041]
[1717732819861,0.23406,71024.0,71023.0,0.36383041]
[1717732820048,0.23406,71024.0,71023.0,0.64542841]
[1717732820615,0.23406,71024.0,71023.0,0.47412841]
[1717732823658,0.23406,71024.0,71023.0,0.64542841]
[1717732824517,0.23406,71024.0,71023.0,0.47412841]
[1717732824721,0.23406,71024.0,71023.0,0.64542841]
[1717732825571,0.23406,71024.0,71023.0,0.47412841]
[1717732825780,0.23406,71024.0,71023.0,0.64542841]
[1717732826234,0.23406,71024.0,71023.0,0.634697]
[1717732826655,0.23406,71024.0,71023.0,0.64542841]
[1717732827562,0.23406,71024.0,71023.0,0.47412841]
[1717732827761,0.23406,71024.0,71023.0,0.64542841]
[1717732828568,0.23406,71024.0,71023.0,0.47412841]
[1717732828767,0.23406,71024.0,71023.0,0.64542841]
[1717732829390,0.00086,71024.0,71023.0,0.93702641]
[1717732829678,0.00086,71024.0,71023.0,1.01912641]
[1717732829836,0.00086,71024.0,71023.0,1.18252641]
[1717732830465,0.00086,71024.0,71023.0,1.17252641]
[1717732830665,0.00086,71024.0,71023.0,1.18252641]
[1717732832163,0.00086,71024.0,71023.0,1.17252641]
[1717732833085,0.00086,71024.0,71023.0,1.18252641]
[1717732833713,0.00086,71024.0,71023.0,1.17252641]
[1717732835260,0.00086,71024.0,71023.0,1.18252641]
[1717732836778,0.00086,71024.0,71023.0,1.161795]
[1717732836993,0.00086,71024.0,71023.0,1.18252641]
[1717732837884,0.00086,71024.0,71023.0,1.161795]
[1717732838099,0.00086,71024.0,71023.0,1.18252641]
[1717732839207,0.00086,71024.0,71023.0,1.161795]
[1717732839435,0.00086,71024.0,71023.0,1.18252641]
[1717732839663,0.00086,71024.0,71023.0,1.161795]
[1717732841878,0.00086,71024.0,71023.0,0.93702641]
[1717732842106,0.00086,71024.0,71023.0,1.11492641]
[1717732843724,0.00086,71024.0,71023.0,1.094195]
[1717732843961,0.00086,71024.0,71023.0,1.11492641]
[1717732844329,0.00086,71024.0,71023.0,1.11692641]
[1717732844727,0.00486,71029.0,71028.0,0.44161814]
[1717732845054,0.00486,71029.0,71028.0,0.46609941]
[1717732846057,0.00486,71029.0,71028.0,0.46709941]
[1717732846415,0.00486,71029.0,71028.0,0.47009941]
[1717732847588,0.00486,71029.0,71028.0,0.46709941]
[1717732847776,0.00486,71029.0,71028.0,0.74867841]
[1717732848014,0.00486,71029.0,71028.0,0.75367841]